bitfinex-derivatives/quotes_BNBF0:USTF0_20251010
["timestamp","ask_amount","ask_price","bid_price","bid_amount"]
[1760137787373,3.07630444,1103.3,1096.6,1.25770736]
[1760137787576,4.39472063,1104.0,1096.9,1.25770736]
[1760137787872,3.07630444,1104.3,1096.8,1.25770736]
[1760137788076,3.07630444,1105.7,1097.0,1.25770736]
[1760137788276,3.07630444,1105.7,1097.4,1.25770736]
[1760137788674,3.07630444,1105.7,1097.5,1.25770736]
[1760137789177,3.07630444,1105.2,1097.4,1.25770736]
[1760137789373,3.07630444,1105.3,1097.9,1.25770736]
[1760137789574,3.07630444,1105.3,1096.5,5.0812192]
[1760137789575,3.07630444,1105.3,1098.3,1.25770736]
[1760137789774,0.15810025,1103.5,1098.4,1.25770736]
[1760137790374,0.15810025,1103.5,1098.7,1.25770736]
[1760137790673,0.15810025,1103.5,1098.4,1.25770736]
[1760137790877,3.07630444,1106.1,1098.4,1.09965773]
[1760137791076,3.07630444,1106.1,1097.1,2.03890739]
[1760137791475,3.07630444,1105.3,1097.1,2.03890739]
[1760137791975,3.07630444,1106.4,1097.1,2.03890739]
[1760137792175,3.07630444,1106.4,1097.4,2.03890739]
[1760137792875,3.07630444,1106.4,1097.3,2.03890739]
[1760137793076,3.07630444,1106.1,1097.3,2.03890739]
[1760137793377,3.07630444,1106.1,1097.8,2.03890739]
[1760137793781,0.15805286,1104.1,1097.8,2.03890739]
[1760137793978,0.15805286,1104.1,1098.0,2.03890739]
[1760137794478,0.15805286,1104.1,1097.4,2.03890739]
[1760137795287,0.15805286,1104.1,1097.5,2.03890739]
[1760137795676,0.15805286,1104.1,1097.9,2.03890739]
[1760137796379,0.15805286,1104.1,1098.2,2.03890739]
[1760137796776,0.15805286,1104.1,1098.1,2.03890739]
[1760137797278,0.15805286,1104.1,1098.5,2.03890739]
[1760137797880,0.15805286,1104.1,1098.2,2.03890739]
[1760137798482,0.15805286,1104.1,1098.6,2.03890739]
[1760137798883,0.15805286,1104.1,1098.7,0.61663086]
[1760137799182,0.15805286,1104.1,1098.8,0.61663086]
[1760137799379,0.15805286,1104.1,1098.9,0.61663086]
[1760137799580,0.15805286,1104.1,1099.0,0.61663086]
[1760137799882,0.15805286,1104.1,1099.1,0.61663086]
[1760137800083,0.15805286,1104.1,1099.2,0.61663086]
[1760137800280,2.18548426,1105.3,1097.7,2.03890739]
[1760137800483,2.18548426,1104.9,1097.1,2.03890739]
[1760137801083,2.18548426,1105.1,1098.3,2.03890739]
[1760137801484,2.18548426,1105.1,1097.7,2.03890739]
[1760137801681,2.18548426,1105.3,1097.7,2.03890739]
[1760137801982,5.2617887,1105.4,1097.5,5.0812192]
[1760137802285,2.18548426,1105.4,1097.6,2.03890739]
[1760137802485,2.18548426,1104.7,1097.4,2.03890739]
[1760137802686,2.18548426,1104.7,1097.1,2.03890739]
[1760137802885,2.18548426,1105.2,1097.1,2.03890739]
[1760137803085,2.18548426,1105.4,1097.1,2.03890739]
[1760137803286,0.15811677,1102.9,1097.6,2.03890739]
[1760137803582,2.18548426,1105.2,1097.6,2.03890739]
[1760137803783,0.1580482,1101.6,1098.1,2.03890739]
[1760137804085,2.18548426,1105.5,1098.1,2.03890739]
[1760137804286,0.15801267,1100.8,1098.1,2.03890739]
[1760137804481,0.15801267,1100.8,1098.3,2.03890739]
[1760137804681,3.07630444,1106.0,1098.3,2.03890739]
[1760137804886,0.15797752,1100.2,1098.5,2.03890739]
[1760137805082,2.18548426,1106.3,1098.5,2.03890739]
[1760137805484,0.15790871,1099.8,1099.1,2.03890739]
[1760137805686,2.18548426,1106.2,1099.1,2.03890739]
[1760137806084,3.07630444,1107.0,1098.9,2.03890739]
[1760137806283,3.07630444,1108.5,1098.9,2.03890739]
[1760137806585,3.07630444,1108.5,1100.4,0.82771528]
[1760137806783,3.07630444,1108.5,1100.2,0.82771528]
[1760137807087,3.07630444,1108.5,1100.3,0.82771528]
[1760137807286,3.07630444,1107.3,1100.2,0.82771528]
[1760137807984,3.07630444,1107.3,1098.9,2.03890739]
[1760137808284,3.07630444,1107.3,1098.7,0.82967462]
[1760137808485,3.07630444,1107.3,1098.6,0.82967462]
[1760137808786,2.17926852,1105.7,1098.6,0.82967462]
[1760137808984,0.15794275,1105.2,1099.0,0.82967462]
[1760137809288,0.15794275,1105.2,1098.6,0.82967462]
[1760137809487,0.15794275,1105.2,1097.3,2.03890739]
[1760137809488,0.15794275,1105.2,1098.9,0.82967462]
[1760137809788,0.15794275,1105.2,1098.5,0.82967462]
[1760137809985,2.17926852,1105.3,1098.4,0.67163181]
[1760137810287,2.17926852,1105.3,1096.8,3.04231181]
[1760137810487,3.07630444,1105.7,1096.8,3.04231181]
[1760137810788,3.07630444,1105.7,1097.5,2.03890739]
[1760137810982,3.07630444,1105.7,1098.1,1.25162854]
[1760137811184,2.17926852,1104.8,1098.4,1.25162854]
[1760137811383,3.07630444,1105.9,1098.9,1.25162854]
[1760137811582,3.07630444,1105.9,1098.1,1.25162854]
[1760137811787,3.07630444,1105.9,1098.2,1.25162854]
[1760137811985,3.07630444,1105.9,1098.4,1.25162854]
[1760137812285,3.07630444,1105.9,1098.5,1.89974403]
[1760137812489,2.1791587,1105.3,1098.6,0.64811549]
[1760137812686,2.1791587,1105.3,1098.7,0.64811549]
[1760137812885,2.1791587,1105.5,1098.8,1.89974403]
[1760137813087,0.15802954,1103.7,1098.9,1.89974403]
[1760137813290,2.1791587,1106.2,1099.0,1.89974403]
[1760137813485,2.1791587,1106.2,1099.1,0.64811549]
[1760137813690,0.15796103,1102.6,1099.2,0.64811549]
[1760137813890,2.1791587,1106.6,1099.3,0.49012147]
[1760137814187,2.1791587,1106.6,1098.5,1.25162854]
[1760137814491,2.1791587,1105.4,1098.2,1.25162854]
[1760137814689,2.1791587,1105.4,1098.4,1.25162854]
[1760137814885,2.1791587,1105.4,1098.2,1.25162854]
[1760137815090,2.1791587,1105.4,1098.1,1.25162854]
[1760137815288,2.1791587,1105.4,1097.2,2.03890739]
[1760137815289,2.1791587,1105.4,1098.2,1.25162854]
[1760137815488,2.1791587,1105.3,1098.2,1.25162854]
[1760137815688,2.1791587,1105.5,1098.2,1.25162854]
[1760137815992,2.1791587,1105.5,1098.1,1.25162854]
[1760137816290,2.1791587,1105.9,1098.6,1.25162854]
[1760137816490,2.1791587,1105.9,1098.8,1.25162854]
[1760137816790,2.1791587,1106.2,1098.7,1.25162854]
[1760137816988,0.15800406,1104.2,1098.5,1.25162854]
[1760137817191,0.15800406,1104.2,1096.5,4.31663818]
[1760137817192,2.1791587,1106.2,1098.4,1.25162854]
[1760137817392,2.1791587,1105.8,1098.8,1.25162854]
[1760137817591,0.15800335,1102.8,1098.6,1.25162854]
[1760137817789,5.25546314,1106.3,1098.8,1.25162854]
[1760137817989,0.15798505,1101.8,1099.2,1.25162854]
[1760137818189,2.1791587,1106.0,1099.1,1.25162854]
[1760137818493,0.15796677,1101.2,1098.8,1.25162854]
[1760137818694,0.15796677,1101.2,1098.6,1.25162854]
[1760137818890,2.1791587,1105.9,1098.4,1.09361802]
[1760137819093,2.1791587,1105.9,1097.3,2.03890739]
[1760137819094,2.1791587,1105.0,1097.7,2.03890739]
[1760137819392,2.1791587,1105.0,1096.7,2.03890739]
[1760137819590,2.1791587,1105.1,1096.7,2.03890739]
[1760137819794,2.1791587,1104.8,1096.7,2.03890739]
[1760137819990,2.1791587,1105.0,1097.7,2.03890739]
[1760137820595,2.1791587,1104.9,1097.5,2.03890739]
[1760137820993,2.1791587,1105.3,1097.6,2.03890739]
[1760137821195,2.1791587,1105.3,1097.2,3.04231181]
[1760137821596,2.1791587,1105.6,1097.1,3.04231181]
[1760137821793,0.15804138,1103.3,1097.8,2.03890739]
[1760137822197,2.1791587,1106.5,1097.8,2.03890739]
[1760137822397,6.94227956,1109.3,1098.2,2.03890739]
[1760137822398,0.15796318,1102.0,1098.2,2.03890739]
[1760137822594,3.07630444,1107.2,1098.2,2.03890739]
[1760137822798,2.1791587,1107.2,1098.8,2.03890739]
[1760137822999,0.15790799,1101.1,1098.6,2.03890739]
[1760137823201,2.1791587,1107.2,1098.6,2.03890739]
[1760137823401,0.15791516,1100.5,1098.5,2.03890739]
[1760137823597,0.15791516,1100.5,1098.3,2.03890739]
[1760137823802,2.1791587,1106.8,1098.3,2.03890739]
[1760137823999,0.15794275,1100.0,1098.6,2.03890739]
[1760137824206,2.1791587,1106.8,1098.6,2.03890739]
[1760137824500,0.15789653,1099.7,1098.7,2.03890739]
[1760137824699,2.1791587,1106.7,1098.7,2.03890739]
[1760137825102,2.1791587,1106.8,1098.8,2.03890739]
[1760137825398,3.07630444,1107.1,1098.8,2.03890739]
[1760137825701,2.1791587,1107.9,1099.1,2.03890739]
[1760137825900,3.07630444,1108.7,1099.2,0.65496599]
[1760137826099,3.07630444,1108.7,1099.3,0.65496599]
[1760137826306,3.07630444,1108.7,1099.4,0.65496599]
[1760137826500,3.07630444,1108.7,1099.5,0.65496599]
[1760137826703,3.07630444,1107.1,1099.6,0.65496599]
[1760137826901,3.07630444,1107.1,1099.7,0.65496599]
[1760137827104,3.07630444,1107.1,1099.8,0.65496599]
[1760137827304,3.07630444,1107.4,1099.9,0.65496599]
[1760137827605,3.07630444,1107.7,1100.0,0.65496599]
[1760137827806,3.07630444,1107.7,1098.8,2.03890739]
[1760137827807,3.07630444,1107.7,1100.1,0.65496599]
[1760137828105,3.07630444,1107.7,1100.2,0.65496599]
[1760137828304,3.07630444,1107.7,1100.3,0.65496599]
[1760137828504,0.15778842,1105.9,1100.4,0.65496599]
[1760137828707,0.15778842,1105.9,1100.5,0.65496599]
[1760137828908,0.15778842,1105.9,1100.6,0.65496599]
[1760137829108,0.15778842,1105.9,1100.7,0.65496599]
[1760137829308,0.15778842,1105.9,1100.8,0.65496599]
[1760137829503,0.15778842,1105.9,1100.9,0.65496599]
[1760137829705,0.15778842,1105.9,1101.0,0.65496599]
[1760137829903,0.15778842,1105.9,1101.1,0.65496599]
[1760137830107,0.15778842,1105.9,1101.2,0.65496599]
[1760137830305,0.15778842,1105.9,1101.3,0.65496599]
[1760137830508,3.07630444,1108.8,1101.4,0.4972698]
[1760137830703,3.07630444,1108.8,1100.8,0.61700191]
[1760137830908,3.07630444,1108.8,1100.6,0.61700191]
[1760137831107,3.07630444,1108.8,1100.5,0.61700191]
[1760137831309,3.07630444,1108.0,1101.0,0.61700191]
[1760137831509,3.07630444,1108.0,1100.9,0.61700191]
[1760137831807,3.07630444,1108.0,1101.1,0.61700191]
[1760137832009,3.07630444,1108.7,1101.4,0.61700191]
[1760137832206,3.07630444,1108.7,1101.5,0.61700191]
[1760137832412,3.07630444,1109.1,1101.3,0.61700191]
[1760137832610,3.07630444,1109.1,1101.1,0.61700191]
[1760137832809,3.07630444,1109.1,1101.0,0.61700191]
[1760137833008,3.07630444,1109.1,1101.3,0.61700191]
[1760137833211,3.07630444,1109.1,1101.2,0.61700191]
[1760137833409,3.07630444,1109.0,1101.3,0.61700191]
[1760137833710,0.15762583,1107.2,1101.2,0.61700191]
[1760137833914,0.15762583,1107.2,1100.8,0.61700191]
[1760137834114,0.15762583,1107.2,1101.1,0.61700191]
[1760137834310,0.15762583,1107.2,1100.9,0.61700191]
[1760137834911,0.15762583,1107.2,1100.6,0.61700191]
[1760137835111,3.07630444,1108.5,1098.6,2.03890739]
[1760137835511,3.07630444,1107.7,1098.6,2.03890739]
[1760137835715,2.16419815,1107.6,1098.7,2.03890739]
[1760137836112,2.16419815,1107.6,1098.3,3.04231181]
[1760137836414,5.24050259,1107.7,1098.3,3.04231181]
[1760137836610,5.24050259,1107.7,1098.3,2.03890739]
[1760137837413,2.16419815,1107.3,1098.6,2.03890739]
[1760137837615,2.16419815,1107.3,1098.5,2.03890739]
[1760137837912,2.16419815,1107.4,1098.5,2.03890739]
[1760137838135,0.15789008,1105.2,1098.4,2.03890739]
[1760137838418,0.15789008,1105.2,1097.7,2.03890739]
[1760137838617,0.15789008,1105.2,1097.8,2.03890739]
[1760137838914,0.15789008,1105.2,1099.3,1.21912639]
[1760137839113,0.15789008,1105.2,1099.0,1.21912639]
[1760137839317,0.15789008,1105.2,1099.1,1.21912639]
[1760137839818,0.15789008,1105.2,1098.9,1.21912639]
[1760137840118,0.15789008,1105.2,1099.0,0.81495916]
[1760137840315,0.15789008,1105.2,1099.1,0.81495916]
[1760137840615,0.15789008,1105.2,1099.4,0.81495916]
[1760137840814,0.15789008,1105.2,1099.5,0.81495916]
[1760137841115,0.15789008,1105.2,1099.6,0.81495916]
[1760137841318,0.15789008,1105.2,1099.3,1.21912639]
[1760137841319,0.15789008,1105.2,1099.7,0.81495916]
[1760137841616,0.15789008,1105.2,1099.8,0.81495916]
[1760137841914,0.15789008,1105.2,1099.9,0.81495916]
[1760137842314,0.15789008,1105.2,1100.0,0.81495916]
[1760137842519,0.15789008,1105.2,1100.1,0.62604613]
[1760137842715,0.15789008,1105.2,1100.2,0.62604613]
[1760137842915,0.15789008,1105.2,1100.3,0.62604613]
[1760137843216,2.16419815,1106.4,1100.4,0.46817038]
[1760137843415,2.16419815,1106.4,1099.6,0.81495916]
[1760137843615,3.07630444,1106.3,1099.6,0.81495916]
[1760137843919,2.16419815,1105.6,1099.0,0.81495916]
[1760137844118,2.16419815,1106.2,1099.2,0.81495916]
[1760137844313,2.16419815,1106.2,1099.3,0.81495916]
[1760137844616,2.16419815,1105.3,1099.0,0.81495916]
[1760137845218,2.16419815,1105.1,1098.9,0.81495916]
[1760137845418,2.16419815,1105.1,1098.1,0.81495916]
[1760137845619,2.16419815,1104.9,1098.5,0.81495916]
[1760137845815,2.16419815,1104.9,1098.9,0.81495916]
[1760137846120,0.15805896,1103.4,1099.2,0.81495916]
[1760137846315,0.15805896,1103.4,1098.8,0.65688189]
[1760137846516,2.16419815,1105.6,1098.8,0.65688189]
[1760137846817,0.88270627,1100.5,1097.3,2.03890739]
[1760137847016,0.51816347,1100.4,1097.3,2.03890739]
[1760137847216,0.88270627,1100.2,1096.4,0.1580726]
[1760137847521,0.51816347,1100.1,1096.4,0.1580726]
[1760137847816,0.51816347,1100.0,1096.4,0.1580726]
[1760137848117,0.51816347,1099.9,1096.4,0.1580726]
[1760137848317,0.51816347,1099.8,1094.7,2.03890739]
[1760137848520,1.32405941,1100.7,1094.7,2.03890739]
[1760137848521,1.40086974,1099.7,1095.9,0.15844505]
[1760137848817,0.51816347,1099.6,1095.9,0.15844505]
[1760137849019,0.51816347,1099.5,1095.9,0.15844505]
[1760137849216,0.51816347,1099.4,1095.9,0.15844505]
[1760137849416,0.15843676,1098.7,1095.9,0.15844505]
[1760137849823,0.15843676,1098.7,1096.7,1.25641081]
[1760137850422,0.15843676,1098.7,1096.1,1.25641081]
[1760137850717,0.15843676,1098.7,1096.2,1.25641081]
[1760137850923,0.55437675,1098.6,1095.9,0.15844505]
[1760137851123,0.55437675,1098.5,1095.9,0.15844505]
[1760137851320,0.55469475,1098.4,1093.4,2.03890739]
[1760137851519,0.55469475,1098.3,1095.3,0.15855406]
[1760137851718,0.55469475,1098.2,1093.2,2.03890739]
[1760137851924,0.15843676,1098.7,1094.8,1.25928639]
[1760137852126,0.51368397,1098.6,1095.0,1.25928639]
[1760137852325,0.51368397,1098.5,1094.8,0.15863826]
[1760137852524,0.51368397,1098.5,1094.4,1.25928639]
[1760137852726,0.51309676,1098.4,1094.9,0.15856923]
[1760137852926,0.15843676,1098.7,1095.1,1.25928639]
[1760137853127,0.15843676,1098.7,1095.0,1.25928639]
[1760137853626,0.15843676,1098.7,1094.9,1.41785562]
[1760137853922,0.15843676,1098.7,1095.6,1.25928639]
[1760137854529,0.15843676,1098.7,1095.5,1.25928639]
[1760137854821,0.15843676,1098.7,1095.6,1.25928639]
[1760137855026,0.15843676,1098.7,1095.1,1.25928639]
[1760137855224,0.15843676,1098.7,1095.3,1.25928639]
[1760137855424,0.15843676,1098.7,1095.4,1.25928639]
[1760137855627,0.15843676,1098.7,1095.6,1.25928639]
[1760137855826,0.15843676,1098.7,1096.9,1.25928639]
[1760137856027,0.15843676,1098.7,1097.0,0.54789092]
[1760137856229,0.15843676,1098.7,1097.2,1.25928639]
[1760137856429,0.15843676,1098.7,1097.3,1.80717731]
[1760137856726,0.15843676,1098.7,1097.4,0.54789092]
[1760137857025,0.15843676,1098.7,1096.4,1.25928639]
[1760137857229,0.15843676,1098.7,1096.3,1.25928639]
[1760137857427,0.15843676,1098.7,1096.4,1.25928639]
[1760137857729,0.15843676,1098.7,1096.8,1.25928639]
[1760137857930,0.15843676,1098.7,1096.1,1.25928639]
[1760137858225,0.15843676,1098.7,1096.0,1.25928639]
[1760137858729,0.15843676,1098.7,1096.2,1.25928639]
[1760137859129,0.15843676,1098.7,1096.6,1.25928639]
[1760137859531,0.15843676,1098.7,1096.4,1.25928639]
[1760137859729,0.15843676,1098.7,1096.3,1.25928639]
[1760137859930,0.15843676,1098.7,1096.4,1.25928639]
[1760137860232,0.15843676,1098.7,1096.0,1.25928639]
[1760137860829,0.15843676,1098.7,1095.7,1.25928639]
[1760137861030,0.15843676,1098.7,1096.4,1.25928639]
[1760137861232,0.15843676,1098.7,1096.2,1.25928639]
[1760137861433,0.15843676,1098.7,1096.5,1.25928639]
[1760137861730,0.15843676,1098.7,1096.8,1.25928639]
[1760137862133,0.15843676,1098.7,1097.6,1.25928639]
[1760137862333,0.15843676,1098.7,1097.7,0.54477963]
[1760137862533,0.15843676,1098.7,1097.8,0.54477963]
[1760137862731,0.15843676,1098.7,1097.9,0.54477963]
[1760137862934,0.15843676,1098.7,1098.0,0.54477963]
[1760137863130,0.15843676,1098.7,1095.1,3.04231181]
[1760137863131,0.15843676,1098.7,1098.1,0.54477963]
[1760137863332,1.32405941,1102.4,1096.8,1.10103732]
[1760137863532,1.32405941,1101.4,1096.9,0.54302454]
[1760137863832,1.32405941,1101.8,1097.0,0.54302454]
[1760137864031,2.16419815,1102.9,1097.1,0.54302454]
[1760137864234,2.16419815,1102.9,1097.2,0.54302454]
[1760137864734,2.16419815,1102.9,1095.3,2.03890739]
[1760137865034,2.16419815,1103.7,1096.4,2.03890739]
[1760137865229,2.16419815,1103.7,1096.5,0.56017202]
[1760137865435,2.16419815,1103.7,1096.6,0.56017202]
[1760137865732,2.16419815,1103.7,1096.7,2.59907941]
[1760137865932,2.16419815,1104.0,1096.8,0.56017202]
[1760137866130,2.16419815,1104.0,1096.9,0.56017202]
[1760137866337,0.15823252,1102.3,1097.0,0.56017202]
[1760137866636,0.15823252,1102.3,1097.1,0.56017202]
[1760137866833,0.15823252,1102.3,1097.2,0.56017202]
[1760137867140,0.15823252,1102.3,1097.3,0.56017202]
[1760137867336,0.15823252,1102.3,1097.4,0.56017202]
[1760137867531,0.15823252,1102.3,1097.5,0.56017202]
[1760137867734,0.15823252,1102.3,1097.6,0.56017202]
[1760137867931,0.15823252,1102.3,1097.7,0.56017202]
[1760137868232,0.15823252,1102.3,1097.8,0.56017202]
[1760137868437,0.15823252,1102.3,1097.9,0.56017202]
[1760137868636,0.15823252,1102.3,1098.0,0.56017202]
[1760137868834,0.15823252,1102.3,1098.1,0.56017202]
[1760137869139,0.15823252,1102.3,1098.2,0.56017202]
[1760137869340,0.15823252,1102.3,1098.3,0.56017202]
[1760137869536,0.15823252,1102.3,1098.4,0.56017202]
[1760137869739,0.15823252,1102.3,1098.5,0.56017202]
[1760137870039,0.15823252,1102.3,1098.6,0.56017202]
[1760137870340,2.16419815,1104.7,1098.7,0.62725694]
[1760137870637,2.16419815,1104.7,1098.8,0.62725694]
[1760137870939,2.16419815,1104.7,1096.4,2.03890739]
[1760137871134,2.16419815,1104.3,1096.5,0.62885422]
[1760137871336,2.16419815,1104.3,1096.6,0.62885422]
[1760137871535,2.16419815,1104.6,1096.7,0.62885422]
[1760137871835,2.16419815,1104.4,1096.8,0.62885422]
[1760137872036,2.16419815,1104.4,1096.9,0.62885422]
[1760137872236,2.16419815,1104.6,1097.0,0.62885422]
[1760137872439,2.16419815,1104.6,1096.3,2.03890739]
[1760137872440,2.16419815,1104.8,1097.1,0.62885422]
[1760137872738,2.16419815,1104.8,1097.2,0.62885422]
[1760137872940,2.16419815,1104.8,1097.3,0.62885422]
[1760137873139,2.16419815,1104.4,1097.4,0.62885422]
[1760137873340,2.16419815,1104.5,1097.5,0.62885422]
[1760137873536,2.16419815,1104.5,1097.6,0.62885422]
[1760137873740,2.16419815,1104.5,1097.7,0.62885422]
[1760137873940,2.16419815,1104.1,1097.8,0.62885422]
[1760137874138,2.16419815,1104.1,1097.9,0.62885422]
[1760137874338,2.16419815,1105.0,1098.0,0.62885422]
[1760137874638,2.16419815,1105.2,1098.1,0.62885422]
[1760137874836,2.16419815,1105.2,1098.2,0.62885422]
[1760137875040,2.16419815,1104.5,1098.3,0.62885422]
[1760137875340,2.16419815,1104.5,1098.4,0.62885422]
[1760137875537,3.07630444,1105.1,1098.5,0.62885422]
[1760137875737,3.07630444,1105.1,1095.6,2.03890739]
[1760137875938,3.07630444,1105.1,1095.7,0.60440599]
[1760137876242,2.16419815,1104.5,1095.8,0.60440599]
[1760137876443,2.16419815,1104.5,1097.3,0.83037754]
[1760137876743,2.16419815,1104.0,1097.4,0.60440599]
[1760137876939,2.16419815,1104.0,1098.3,0.83037754]
[1760137877145,3.07630444,1105.0,1098.4,0.60440599]
[1760137877441,6.94227956,1108.7,1098.5,0.60440599]
[1760137877442,3.07642938,1105.3,1098.5,0.60440599]
[1760137877639,3.07642938,1105.4,1098.6,0.60440599]
[1760137877843,3.07642938,1105.4,1098.7,0.60440599]
[1760137878044,3.07642938,1105.4,1098.8,0.60440599]
[1760137878242,3.07642938,1105.4,1098.9,0.60440599]
[1760137878444,3.07642938,1105.4,1097.9,0.83037754]
[1760137878642,3.07642938,1105.4,1098.0,1.34649248]
[1760137878941,3.07642938,1105.4,1098.1,0.83037754]
[1760137879141,3.07642938,1105.4,1098.2,0.83037754]
[1760137879445,3.07642938,1107.1,1098.5,0.83037754]
[1760137879642,3.07642938,1107.1,1098.6,0.83037754]
[1760137880143,3.07642938,1107.1,1098.2,0.83037754]
[1760137880343,3.07642938,1107.1,1097.8,0.83037754]
[1760137880547,3.07642938,1105.3,1097.5,0.83037754]
[1760137880747,3.07642938,1105.3,1097.4,0.83037754]
[1760137880944,3.07642938,1105.3,1097.6,0.83037754]
[1760137881142,3.07642938,1104.5,1097.9,0.83037754]
[1760137881548,3.07642938,1104.5,1097.8,0.67217703]
[1760137882345,3.07642938,1104.5,1095.1,2.03890739]
[1760137883044,4.39472063,1105.7,1095.4,2.03890739]
[1760137883244,7.47115001,1106.8,1095.4,2.03890739]
[1760137883444,7.47115001,1106.8,1097.3,1.2487466]
[1760137883745,7.47115001,1106.8,1097.4,1.2487466]
[1760137884048,3.07642938,1105.1,1097.2,1.2487466]
[1760137884345,3.07642938,1105.1,1097.3,1.2487466]
[1760137884550,0.15824224,1103.2,1097.0,1.2487466]
[1760137884749,0.15824224,1103.2,1097.2,1.2487466]
[1760137885448,3.07642938,1104.8,1097.1,1.09049393]
[1760137885648,3.07642938,1104.8,1096.0,2.03890739]
[1760137886145,3.07642938,1106.5,1096.0,2.03890739]
[1760137886450,3.07642938,1105.3,1096.4,2.03890739]
[1760137886650,3.07642938,1105.7,1096.4,2.03890739]
[1760137886850,3.07642938,1105.7,1097.1,2.03890739]
[1760137887050,3.07642938,1105.7,1097.0,2.03890739]
[1760137887350,3.07642938,1105.7,1097.1,2.03890739]
[1760137888150,3.07642938,1104.7,1096.1,2.03890739]
[1760137888352,0.15821094,1103.6,1096.1,2.03890739]
[1760137888648,0.15821094,1103.6,1095.5,3.04231181]
[1760137888851,0.15821094,1103.6,1095.5,3.20054182]
[1760137889049,0.15821094,1103.6,1096.9,2.03890739]
[1760137889649,0.15821094,1103.6,1096.8,2.03890739]
[1760137890151,0.15821094,1103.6,1096.7,2.03890739]
[1760137890350,0.15821094,1103.6,1095.8,2.03890739]
[1760137890648,0.15821094,1103.6,1095.9,0.67184606]
[1760137890852,0.15821094,1103.6,1096.5,2.03890739]
[1760137891151,0.15821094,1103.6,1096.6,0.67184606]
[1760137891349,0.15821094,1103.6,1096.7,0.67184606]
[1760137891548,0.15821094,1103.6,1096.8,0.67184606]
[1760137891752,0.15821094,1103.6,1096.9,0.67184606]
[1760137891951,0.15821094,1103.6,1097.0,0.67184606]
[1760137892248,0.15821094,1103.6,1097.2,2.03890739]
[1760137892547,0.15821094,1103.6,1097.3,0.67184606]
[1760137892847,0.15821094,1103.6,1097.5,2.03890739]
[1760137893149,0.15821094,1103.6,1097.6,0.67184606]
[1760137893347,0.15821094,1103.6,1097.7,0.67184606]
[1760137893549,0.15821094,1103.6,1097.8,0.67455063]
[1760137893848,3.07642938,1104.4,1097.9,0.51632278]
[1760137894048,3.07642938,1104.4,1097.1,3.04231181]
[1760137894247,3.07642938,1104.5,1096.9,2.03890739]
[1760137894651,3.07642938,1104.5,1097.0,2.03890739]
[1760137894848,3.07642938,1105.0,1097.0,2.03890739]
[1760137895050,3.07642938,1105.0,1099.0,0.62830695]
[1760137895253,3.07642938,1105.0,1098.9,0.62830695]
[1760137895552,3.07642938,1105.0,1099.0,0.62830695]
[1760137895853,3.07642938,1105.6,1099.3,0.62830695]
[1760137896054,3.07642938,1105.6,1099.2,0.62830695]
[1760137896350,3.07642938,1105.6,1099.3,0.62830695]
[1760137896653,3.07642938,1105.6,1099.1,0.62830695]
[1760137896851,3.07642938,1105.3,1099.1,0.47022465]
[1760137897156,4.39472063,1106.4,1096.7,3.04231181]
[1760137897755,4.39472063,1106.4,1097.2,2.03890739]
[1760137898055,4.39472063,1106.3,1097.2,2.03890739]
[1760137898255,2.21600027,1097.7,1095.7,4.31663818]
[1760137898458,0.88643303,1096.2,1095.7,4.31663818]
[1760137898751,1.32964954,1095.8,1095.7,4.31663818]
[1760137898956,0.8153454,1095.8,1095.3,0.15821562]
[1760137899251,2.14626602,1095.7,1085.2,6.65929923]
[1760137899651,1.33092062,1095.7,1085.2,6.65929923]
[1760137899855,3.07642938,1098.3,1085.2,6.65929923]
[1760137900053,4.4410537,1105.8,1097.9,2.09228222]
[1760137900555,4.4410537,1105.8,1097.4,2.92919511]
[1760137900556,4.4410537,1105.8,1098.1,2.09228222]
[1760137900757,4.4410537,1109.0,1098.1,2.09228222]
[1760137901255,4.4410537,1109.0,1097.2,2.09228222]
[1760137901654,4.4410537,1109.0,1098.3,2.09228222]
[1760137901854,4.4410537,1109.0,1097.9,2.09228222]
[1760137902052,2.22248461,1103.6,1097.9,2.09228222]
[1760137902255,2.22248461,1103.5,1097.6,2.09228222]
[1760137902553,2.22248461,1103.5,1097.2,2.92919511]
[1760137902757,2.22248461,1103.4,1097.2,2.92919511]
[1760137903057,2.22248461,1103.6,1096.8,2.09228222]
[1760137903356,0.15835709,1098.8,1096.4,2.92919511]
[1760137903757,0.15835709,1098.8,1096.5,2.09228222]
[1760137904057,0.15835709,1098.8,1096.3,2.09228222]
[1760137904652,0.15835709,1098.8,1096.4,2.09228222]
[1760137905458,0.15835709,1098.8,1097.9,1.25590857]
[1760137905658,0.15835709,1098.8,1098.0,1.25590857]
[1760137905857,0.15835709,1098.8,1098.1,0.63008752]
[1760137906159,0.15835709,1098.8,1098.2,0.63008752]
[1760137906354,2.22248461,1102.0,1098.3,0.42108364]
[1760137906558,2.22248461,1102.0,1096.9,1.25590857]
[1760137906758,2.22248461,1103.1,1097.4,1.25590857]
[1760137906955,2.22248461,1103.3,1097.9,1.25590857]
[1760137907157,2.22248461,1103.3,1097.7,1.25590857]
[1760137907359,2.22248461,1103.3,1097.4,1.25590857]
[1760137907658,2.22248461,1102.5,1097.8,1.25590857]
[1760137908360,2.22248461,1102.4,1097.8,1.25590857]
[1760137908860,2.22248461,1101.7,1097.7,1.25590857]
[1760137909057,2.22248461,1101.7,1097.5,1.25590857]
[1760137909257,3.11147845,1102.2,1097.8,1.25590857]
[1760137909455,4.4410537,1102.8,1097.8,1.25590857]
[1760137909655,3.11147845,1103.8,1098.1,1.25590857]
[1760137910255,2.23584382,1102.2,1097.5,1.25590857]
[1760137910661,2.23584382,1102.8,1097.6,1.25590857]
[1760137910861,2.23584382,1103.5,1098.5,1.25590857]
[1760137911061,2.23584382,1103.5,1098.3,1.25590857]
[1760137911262,2.23584382,1103.5,1097.9,1.25590857]
[1760137911460,2.23584382,1103.4,1097.9,1.25590857]
[1760137911659,2.23584382,1103.4,1098.3,0.83502419]
[1760137911958,2.23584382,1103.1,1098.0,0.83502419]
[1760137912160,2.23584382,1103.1,1098.4,0.83502419]
[1760137912362,3.11147845,1103.7,1098.1,0.83502419]
[1760137912562,3.11147845,1103.7,1096.3,2.09228222]
[1760137912563,0.15834556,1099.1,1098.3,0.83502419]
[1760137912761,0.15834556,1099.1,1097.8,1.25590857]
[1760137912962,3.11147845,1103.4,1098.1,1.25590857]
[1760137913359,3.11147845,1103.4,1099.2,1.25590857]
[1760137913859,3.11147845,1103.4,1099.1,1.25590857]
[1760137914158,3.13254934,1102.1,1097.2,1.25590857]
[1760137914361,2.23753524,1101.6,1096.9,1.25590857]
[1760137914566,2.23753524,1101.6,1097.0,1.25590857]
[1760137914765,2.23753524,1101.6,1097.1,1.25590857]
[1760137914965,2.23753524,1101.7,1097.4,1.25590857]
[1760137915264,2.23753524,1102.3,1097.6,1.25590857]
[1760137915463,2.23753524,1103.3,1097.5,1.25590857]
[1760137915666,0.15833115,1098.9,1098.0,1.25590857]
[1760137915866,0.15833115,1098.9,1098.7,1.25590857]
[1760137916064,2.23753524,1103.5,1097.8,2.09228222]
[1760137916564,3.13254934,1104.0,1099.0,2.09228222]
[1760137916963,3.13254934,1104.0,1098.6,2.92919511]
[1760137917167,4.4410537,1104.7,1098.6,2.92919511]
[1760137917665,4.4410537,1104.7,1098.9,2.92919511]